[Event "95th Caplin Hastings Congress"]
[Site "Hastings"]
[Date "2019.12.29"]
[Round "2.25"]
[White "Anuprita, Patil"]
[Black "Lyell, Mark"]
[Result "0-1"]
[ECO "C40"]
[WhiteElo "2025"]
[BlackElo "2265"]
[Annotator "NA"]
[PlyCount "88"]
[EventDate "2019.12.28"]
[EventType "swiss"]
[EventCountry "ENG"]
[SourceTitle "playchess.com"]
[Source "ChessBase"]
[SourceQuality "1"]
[TimeControl "40/6600+30:3000+30"]

1. Nf3 {[%emt 0:14:51]} f5 {[%emt 0:09:48]} 2. d3 {[%emt 0:00:22]} Nc6 {[%emt 0:00:28]} 3. e4 {[%emt 0:00:29]} e5 {[%emt 0:00:43]} 4. Nc3 {[%emt 0:00:22]} Nf6 {[%emt 0:00:36]} 5. exf5 {[%emt 0:00:46]} d5 {[%emt 0:03:02]} 6. d4 {[%emt 0:00:14]} exd4 {[%emt 0:00:42]} 7. Nxd4 {[%emt 0:00:11]} Nxd4 {[%emt 0:00:30]} 8. Qxd4 {[%emt 0:00:03]} Bxf5 {[%emt 0:00:45]} 9. Bg5 {[%emt 0:01:14]} Bxc2 {[%emt 0:00:49]} 10. Rc1 {[%emt 0:20:19]} Bg6 {[%emt 0:51:00]} 11. Bxf6 {[%emt 0:12:12]} Qxf6 {[%emt 0:02:14]} 12. Qe3+ {[%emt 0:30:55]} Qe7 {[%emt 0:14:49]} 13. Qxe7+ {[%emt 0:00:12]} Kxe7 {[%emt 0:00:46]} 14. Nxd5+ {[%emt 0:00:01]} Kd7 {[%emt 0:00:37]} 15. Nxc7 {[%emt 0:12:56]} Bb4+ {[%emt 0:02:41]} 16. Kd1 {[%emt 0:00:02]} Rad8 {[%emt 0:03:34]} 17. Bb5+ {[%emt 0:05:05]} Kc8+ {[%emt 0:04:44]} 18. Ke2 {[%emt 0:00:11]} Kb8 {[%emt 0:01:13]} 19. Ne6 {[%emt 0:11:22]} Rhe8 {[%emt 0:14:05]} 20. Bxe8 {[%emt 0:00:12]} Rxe8 {[%emt 0:00:05]} 21. Rhd1 {[%emt 0:00:16]} Rxe6+ {[%emt 0:00:17]} 22. Kf1 {[%emt 0:01:32]} Rd6 {[%emt 0:00:41]} 23. Rxd6 {[%emt 0:00:18]} Bxd6 {[%emt 0:00:01]} 24. Ke2 {[%emt 0:01:17]} a5 {[%emt 0:02:12]} 25. g3 {[%emt 0:01:21]} Ka7 {[%emt 0:00:15]} 26. f4 {[%emt 0:00:15]} Kb6 {[%emt 0:01:00]} 27. Rc8 {[%emt 0:00:11]} Be7 {[%emt 0:01:35]} 28. g4 {[%emt 0:02:23]} Bb1 {[%emt 0:00:38]} 29. a3 {[%emt 0:00:37]} Bf6 {[%emt 0:00:24]} 30. Rc1 {[%emt 0:00:16]} Be4 {[%emt 0:00:56]} 31. b4 {[%emt 0:02:22]} a4 {[%emt 0:00:31]} 32. Rd1 {[%emt 0:01:05]} Bb2 {[%emt 0:01:15]} 33. Ke3 {[%emt 0:00:26]} Bc6 {[%emt 0:02:03]} 34. Rd3 {[%emt 0:00:58]} Bb5 {[%emt 0:00:31]} 35. Rd6+ {[%emt 0:00:08]} Bc6 {[%emt 0:00:53]} 36. Rd3 {[%emt 0:00:24]} Kb5 {[%emt 0:00:35]} 37. f5 {[%emt 0:00:21]} Kc4 {[%emt 0:00:28]} 38. Rd8 {[%emt 0:01:21]} Bxa3 {[%emt 0:00:33]} 39. Rd4+ {[%emt 0:00:44]} Kb5 {[%emt 0:00:23]} 40. Kd3 {[%emt 0:01:01]} Bxb4 {[%emt 0:00:35]} 41. g5 {[%emt 0:50:10]} a3 {[%emt 0:50:43]} 42. Kc2 {[%emt 0:00:30]} a2 {[%emt 0:00:00]} 43. Rd1 {[%emt 0:00:00]} Be4+ {[%emt 0:00:00]} 44. Kb2 {[%emt 0:00:00]} Bb1 {[%emt 0:00:00]} 0-1

[Event "95th Caplin Hastings Congress"]
[Site "Hastings"]
[Date "2019.12.29"]
[Round "2.26"]
[White "Norinkeviciute, Rasa"]
[Black "Wall, Tim P"]
[Result "0-1"]
[ECO "B04"]
[WhiteElo "2018"]
[BlackElo "2218"]
[Annotator "NA"]
[PlyCount "126"]
[EventDate "2019.12.28"]
[EventType "swiss"]
[EventCountry "ENG"]
[SourceTitle "playchess.com"]
[Source "ChessBase"]
[SourceQuality "1"]
[TimeControl "40/6600+30:3000+30"]

1. e4 {[%emt 0:09:53]} Nf6 {[%emt 0:10:36]} 2. e5 {[%emt 0:00:06]} Nd5 {[%emt 0:00:08]} 3. d4 {[%emt 0:00:08]} d6 {[%emt 0:00:09]} 4. Nf3 {[%emt 0:01:26]} dxe5 {[%emt 0:00:35]} 5. Nxe5 {[%emt 0:00:40]} c6 {[%emt 0:00:11]} 6. Be2 {[%emt 0:00:55]} Bf5 {[%emt 0:00:38]} 7. a3 {[%emt 0:05:31]} Nd7 {[%emt 0:01:27]} 8. Nf3 {[%emt 0:00:30]} e6 {[%emt 0:01:20]} 9. c4 {[%emt 0:01:26]} N5f6 {[%emt 0:00:12]} 10. Nc3 {[%emt 0:02:45]} Bd6 {[%emt 0:02:44]} 11. h3 {[%emt 0:05:57]} h6 {[%emt 0:02:32]} 12. Be3 {[%emt 0:00:19]} Qc7 {[%emt 0:01:32]} 13. Qd2 {[%emt 0:01:58]} Ne4 {[%emt 0:03:08]} 14. Nxe4 {[%emt 0:06:06]} Bxe4 {[%emt 0:00:10]} 15. b4 {[%emt 0:05:00]} a5 {[%emt 0:16:31]} 16. c5 {[%emt 0:01:51]} Be7 {[%emt 0:00:38]} 17. Bf4 {[%emt 0:02:24]} Qd8 {[%emt 0:00:45]} 18. O-O {[%emt 0:00:45]} O-O {[%emt 0:02:02]} 19. Qe3 {[%emt 0:08:55]} Bh7 {[%emt 0:06:37]} 20. b5 {[%emt 0:10:36]} cxb5 {[%emt 0:03:41]} 21. Bxb5 {[%emt 0:00:40]} Nf6 {[%emt 0:01:01]} 22. Be5 {[%emt 0:05:44]} Nd5 {[%emt 0:02:26]} 23. Qb3 {[%emt 0:02:03]} a4 {[%emt 0:36:03]} 24. Bxa4 {[%emt 0:28:25]} Nc3 {[%emt 0:05:04]} 25. Bb5 {[%emt 0:05:27]} Nxb5 {[%emt 0:03:55]} 26. Qxb5 {[%emt 0:00:06]} Qd5 {[%emt 0:00:33]} 27. Rfd1 {[%emt 0:04:08]} Bc2 {[%emt 0:03:17]} 28. Rd2 {[%emt 0:02:26]} Ba4 {[%emt 0:01:45]} 29. Qb2 {[%emt 0:00:39]} Bc6 {[%emt 0:00:23]} 30. Qa2 {[%emt 0:00:47]} Ra4 {[%emt 0:04:30]} 31. Qxd5 {[%emt 0:02:06]} Bxd5 {[%emt 0:00:05]} 32. Rd3 {[%emt 0:01:29]} Rfa8 {[%emt 0:00:20]} 33. Rc3 {[%emt 0:02:51]} Bd8 {[%emt 0:01:55]} 34. Re3 {[%emt 0:01:31]} f6 {[%emt 0:02:21]} 35. Bd6 {[%emt 0:00:26]} Kf7 {[%emt 0:00:12]} 36. Rd3 {[%emt 0:00:34]} Ke8 {[%emt 0:01:14]} 37. Nd2 {[%emt 0:00:53]} g5 {[%emt 0:01:09]} 38. f3 {[%emt 0:00:28]} Kd7 {[%emt 0:02:20]} 39. Bg3 {[%emt 0:00:58]} Kc6 {[%emt 0:02:26]} 40. Bf2 {[%emt 0:00:27]} f5 {[%emt 0:01:09]} 41. Nb1 {[%emt 0:04:26]} Bc7 {[%emt 0:09:51]} 42. Be1 {[%emt 0:06:24]} Bc4 {[%emt 0:04:06]} 43. Rd1 {[%emt 0:06:56]} Bf4 {[%emt 0:03:57]} 44. Bf2 {[%emt 0:04:00]} h5 {[%emt 0:03:50]} 45. Re1 {[%emt 0:05:52]} h4 {[%emt 0:03:51]} 46. Be3 {[%emt 0:06:41]} Bg3 {[%emt 0:00:34]} 47. Bf2 {[%emt 0:00:53]} Bd5 {[%emt 0:06:15]} 48. Rd1 {[%emt 0:02:48]} Rc4 {[%emt 0:05:04]} 49. Be3 {[%emt 0:01:31]} Rc2 {[%emt 0:08:36]} 50. a4 {[%emt 0:09:34]} g4 {[%emt 0:02:28]} 51. Nd2 {[%emt 0:03:16]} gxh3 {[%emt 0:01:16]} 52. gxh3 {[%emt 0:00:56]} Rg8 {[%emt 0:00:19]} 53. Kf1 {[%emt 0:00:20]} Bc7 {[%emt 0:01:48]} 54. Rdc1 {[%emt 0:02:52]} Rxc1+ {[%emt 0:01:06]} 55. Rxc1 {[%emt 0:00:03]} Rg3 {[%emt 0:00:11]} 56. Bf2 {[%emt 0:00:35]} Rxh3 {[%emt 0:00:22]} 57. Kg2 {[%emt 0:00:28]} Rh2+ {[%emt 0:00:09]} 58. Kg1 {[%emt 0:00:25]} h3 {[%emt 0:02:04]} 59. Rb1 {[%emt 0:01:25]} Rg2+ {[%emt 0:01:03]} 60. Kf1 {[%emt 0:00:20]} Bf4 {[%emt 0:00:45]} 61. Rb6+ {[%emt 0:00:48]} Kc7 {[%emt 0:00:13]} 62. Rb2 {[%emt 0:00:32]} Kc8 {[%emt 0:02:08]} 63. Ke1 {[%emt 0:00:34]} h2 {[%emt 0:00:14]} 0-1

[Event "95th Caplin Hastings Congress"]
[Site "Hastings"]
[Date "2019.12.29"]
[Round "2.27"]
[White "Lehaci, Miruna-Daria"]
[Black "De Coverly, Roger D"]
[Result "1-0"]
[ECO "C84"]
[WhiteElo "2214"]
[BlackElo "1986"]
[Annotator "NA"]
[PlyCount "101"]
[EventDate "2019.12.28"]
[EventType "swiss"]
[EventCountry "ENG"]
[SourceTitle "playchess.com"]
[Source "ChessBase"]
[SourceQuality "1"]
[TimeControl "40/6600+30:3000+30"]

1. e4 {[%emt 0:17:06]} e5 {[%emt 0:09:38]} 2. Nf3 {[%emt 0:00:11]} Nc6 {[%emt 0:00:06]} 3. Bb5 {[%emt 0:00:05]} a6 {[%emt 0:00:07]} 4. Ba4 {[%emt 0:00:03]} Nf6 {[%emt 0:00:22]} 5. d3 {[%emt 0:00:06]} b5 {[%emt 0:00:43]} 6. Bb3 {[%emt 0:00:04]} Be7 {[%emt 0:00:24]} 7. O-O {[%emt 0:00:08]} O-O {[%emt 0:00:42]} 8. Nc3 {[%emt 0:00:06]} d6 {[%emt 0:00:57]} 9. a4 {[%emt 0:00:11]} b4 {[%emt 0:02:02]} 10. Nd5 {[%emt 0:00:06]} Bg4 {[%emt 0:04:00]} 11. Be3 {[%emt 0:01:09]} a5 {[%emt 0:04:56]} 12. h3 {[%emt 0:03:00]} Bxf3 {[%emt 0:02:02]} 13. Qxf3 {[%emt 0:00:13]} Nd4 {[%emt 0:00:45]} 14. Bxd4 {[%emt 0:00:46]} exd4 {[%emt 0:00:12]} 15. Nxe7+ {[%emt 0:01:38]} Qxe7 {[%emt 0:00:08]} 16. Rae1 {[%emt 0:02:43]} Nd7 {[%emt 0:03:24]} 17. Qg3 {[%emt 0:03:30]} Nc5 {[%emt 0:05:06]} 18. Bd5 {[%emt 0:00:18]} Rab8 {[%emt 0:03:14]} 19. b3 {[%emt 0:01:43]} Rb6 {[%emt 0:09:19]} 20. e5 {[%emt 0:05:44]} dxe5 {[%emt 0:01:48]} 21. Rxe5 {[%emt 0:00:09]} Qd6 {[%emt 0:03:36]} 22. Bc4 {[%emt 0:02:23]} Rbb8 {[%emt 0:06:22]} 23. Rd5 {[%emt 0:07:02]} Qxg3 {[%emt 0:11:41]} 24. fxg3 {[%emt 0:00:06]} Ne6 {[%emt 0:03:29]} 25. Rxa5 {[%emt 0:00:56]} Rfe8 {[%emt 0:06:32]} 26. Raf5 {[%emt 0:01:39]} Nd8 {[%emt 0:04:29]} 27. Rxf7 {[%emt 0:04:27]} Nxf7 {[%emt 0:00:33]} 28. Bxf7+ {[%emt 0:00:05]} Kf8 {[%emt 0:01:55]} 29. Bxe8+ {[%emt 0:00:22]} Kxe8 {[%emt 0:00:05]} 30. Rf5 {[%emt 0:01:08]} Ke7 {[%emt 0:07:54]} 31. Rd5 {[%emt 0:00:25]} Ke6 {[%emt 0:02:09]} 32. Rxd4 {[%emt 0:00:06]} c5 {[%emt 0:00:29]} 33. Re4+ {[%emt 0:00:18]} Kd6 {[%emt 0:00:32]} 34. Kf2 {[%emt 0:00:47]} g5 {[%emt 0:00:57]} 35. h4 {[%emt 0:01:02]} Rf8+ {[%emt 0:00:41]} 36. Ke2 {[%emt 0:00:17]} h6 {[%emt 0:01:00]} 37. h5 {[%emt 0:00:43]} Rf5 {[%emt 0:01:21]} 38. g4 {[%emt 0:00:26]} Rf6 {[%emt 0:01:00]} 39. g3 {[%emt 0:00:11]} Kd5 {[%emt 0:01:03]} 40. Re7 {[%emt 0:01:25]} Kd4 {[%emt 0:02:17]} 41. Rc7 {[%emt 0:52:08]} Re6+ {[%emt 0:51:24]} 42. Kd2 {[%emt 0:00:04]} Rf6 {[%emt 0:01:36]} 43. Rd7+ {[%emt 0:00:05]} Ke5 {[%emt 0:00:33]} 44. Ke2 {[%emt 0:00:06]} Re6 {[%emt 0:01:44]} 45. Rf7 {[%emt 0:04:46]} Kd4+ {[%emt 0:03:08]} 46. Kd2 {[%emt 0:00:03]} Ke5 {[%emt 0:04:26]} 47. Rg7 {[%emt 0:00:37]} Rf6 {[%emt 0:01:09]} 48. Rg6 {[%emt 0:00:58]} Rf2+ {[%emt 0:00:36]} 49. Kc1 {[%emt 0:00:06]} Kd4 {[%emt 0:03:17]} 50. Kb2 {[%emt 0:00:08]} Rg2 {[%emt 0:00:58]} 51. a5 {[%emt 0:00:13]} 1-0

[Event "95th Caplin Hastings Congress"]
[Site "Hastings"]
[Date "2019.12.29"]
[Round "2.28"]
[White "Pavlov, Mikhail"]
[Black "Brouwer, Dennis"]
[Result "1-0"]
[ECO "C03"]
[WhiteElo "1955"]
[BlackElo "2202"]
[Annotator "NA"]
[PlyCount "57"]
[EventDate "2019.12.28"]
[EventType "swiss"]
[EventCountry "ENG"]
[SourceTitle "playchess.com"]
[Source "ChessBase"]
[SourceQuality "1"]
[TimeControl "40/6600+30:3000+30"]

1. e4 {[%emt 0:09:32]} e6 {[%emt 0:10:16]} 2. d4 {[%emt 0:00:08]} d5 {[%emt 0:00:08]} 3. Nd2 {[%emt 0:00:08]} Be7 {[%emt 0:00:12]} 4. e5 {[%emt 0:00:06]} c5 {[%emt 0:00:14]} 5. Qg4 {[%emt 0:00:05]} Kf8 {[%emt 0:08:02]} 6. dxc5 {[%emt 0:00:44]} Nd7 {[%emt 0:06:29]} 7. Qg3 {[%emt 0:06:12]} Nxc5 {[%emt 0:08:40]} 8. Ngf3 {[%emt 0:00:13]} Bd7 {[%emt 0:01:03]} 9. Nb3 {[%emt 0:07:49]} Qb6 {[%emt 0:09:39]} 10. Be3 {[%emt 0:10:45]} a5 {[%emt 0:01:56]} 11. Be2 {[%emt 0:18:30]} a4 {[%emt 0:04:40]} 12. Nbd2 {[%emt 0:04:08]} Qxb2 {[%emt 0:02:59]} 13. O-O {[%emt 0:01:26]} Rc8 {[%emt 0:01:50]} 14. c4 {[%emt 0:09:25]} dxc4 {[%emt 0:27:12]} 15. Bxc4 {[%emt 0:00:33]} Qc2 {[%emt 0:06:44]} 16. Rab1 {[%emt 0:10:08]} Nh6 {[%emt 0:04:20]} 17. Rfc1 {[%emt 0:04:40]} Qg6 {[%emt 0:01:25]} 18. Qxg6 {[%emt 0:00:09]} hxg6 {[%emt 0:00:15]} 19. Bb5 {[%emt 0:00:06]} Ke8 {[%emt 0:06:59]} 20. Bxd7+ {[%emt 0:01:22]} Kxd7 {[%emt 0:00:07]} 21. Ne4 {[%emt 0:00:43]} Na6 {[%emt 0:04:12]} 22. Rxb7+ {[%emt 0:00:13]} Rc7 {[%emt 0:00:34]} 23. Rd1+ {[%emt 0:03:58]} Kc8 {[%emt 0:00:07]} 24. Rb6 {[%emt 0:00:07]} Nb8 {[%emt 0:05:52]} 25. Rdb1 {[%emt 0:10:44]} Nd7 {[%emt 0:04:35]} 26. Ra6 {[%emt 0:00:14]} Rb7 {[%emt 0:00:15]} 27. Ra8+ {[%emt 0:00:33]} Nb8 {[%emt 0:01:26]} 28. Rxb7 {[%emt 0:00:12]} Kxb7 {[%emt 0:00:05]} 29. Ra7+ {[%emt 0:00:05]} 1-0

[Event "95th Caplin Hastings Congress"]
[Site "Hastings"]
[Date "2019.12.29"]
[Round "2.29"]
[White "Snape, Ian L"]
[Black "Burrows, Nick"]
[Result "1-0"]
[ECO "C16"]
[WhiteElo "2196"]
[BlackElo "1952"]
[Annotator "NA"]
[PlyCount "119"]
[EventDate "2019.12.28"]
[EventType "swiss"]
[EventCountry "ENG"]
[SourceTitle "playchess.com"]
[Source "ChessBase"]
[SourceQuality "1"]
[TimeControl "40/6600+30:3000+30"]

1. e4 {[%emt 0:09:33]} e6 {[%emt 0:15:44]} 2. d4 {[%emt 0:00:06]} d5 {[%emt 0:00:05]} 3. Nc3 {[%emt 0:00:03]} Bb4 {[%emt 0:00:12]} 4. e5 {[%emt 0:00:07]} b6 {[%emt 0:00:10]} 5. a3 {[%emt 0:01:04]} Bf8 {[%emt 0:00:19]} 6. f4 {[%emt 0:02:01]} Ne7 {[%emt 0:00:55]} 7. Be3 {[%emt 0:02:03]} h5 {[%emt 0:01:28]} 8. Bf2 {[%emt 0:01:13]} Qd7 {[%emt 0:03:11]} 9. Nf3 {[%emt 0:01:10]} Nbc6 {[%emt 0:07:46]} 10. Bd3 {[%emt 0:10:50]} Bb7 {[%emt 0:01:09]} 11. Qe2 {[%emt 0:06:00]} O-O-O {[%emt 0:03:42]} 12. O-O {[%emt 0:06:57]} Nf5 {[%emt 0:04:25]} 13. Bxf5 {[%emt 0:00:27]} exf5 {[%emt 0:00:02]} 14. Rfe1 {[%emt 0:06:22]} Re8 {[%emt 0:02:32]} 15. Qd3 {[%emt 0:10:10]} Be7 {[%emt 0:08:03]} 16. Bh4 {[%emt 0:01:38]} Bxh4 {[%emt 0:04:28]} 17. Nxh4 {[%emt 0:00:07]} g6 {[%emt 0:05:05]} 18. Nf3 {[%emt 0:08:19]} Nd8 {[%emt 0:00:58]} 19. Ng5 {[%emt 0:02:14]} Ne6 {[%emt 0:01:11]} 20. Nxe6 {[%emt 0:00:06]} Rxe6 {[%emt 0:03:30]} 21. Re3 {[%emt 0:04:41]} h4 {[%emt 0:05:02]} 22. Rae1 {[%emt 0:00:48]} Rh5 {[%emt 0:01:45]} 23. Nd1 {[%emt 0:07:25]} Kb8 {[%emt 0:02:41]} 24. Nf2 {[%emt 0:00:36]} Bc8 {[%emt 0:05:08]} 25. Nh3 {[%emt 0:01:24]} Re7 {[%emt 0:02:12]} 26. Ng5 {[%emt 0:00:49]} Qc6 {[%emt 0:05:11]} 27. Qd2 {[%emt 0:06:59]} Be6 {[%emt 0:01:23]} 28. Qb4 {[%emt 0:04:15]} Re8 {[%emt 0:05:42]} 29. Rc3 {[%emt 0:00:25]} Qd7 {[%emt 0:03:00]} 30. a4 {[%emt 0:08:12]} a5 {[%emt 0:02:23]} 31. Qb3 {[%emt 0:02:45]} Ka7 {[%emt 0:03:13]} 32. Ree3 {[%emt 0:05:16]} Rhh8 {[%emt 0:03:05]} 33. Rh3 {[%emt 0:01:34]} Rh5 {[%emt 0:00:41]} 34. Qa3 {[%emt 0:01:04]} Kb7 {[%emt 0:01:26]} 35. Nf3 {[%emt 0:00:57]} Reh8 {[%emt 0:00:49]} 36. b4 {[%emt 0:03:49]} Ra8 {[%emt 0:07:54]} 37. b5 {[%emt 0:00:10]} Rah8 {[%emt 0:00:18]} 38. Rc6 {[%emt 0:00:55]} Qd8 {[%emt 0:02:36]} 39. Qc3 {[%emt 0:03:11]} Bd7 {[%emt 0:01:36]} 40. Rf6 {[%emt 0:00:08]} Qe8 {[%emt 0:02:10]} 41. Ng5 {[%emt 0:07:07]} Rxg5 {[%emt 0:00:40]} 42. fxg5 {[%emt 0:00:04]} Be6 {[%emt 0:00:17]} 43. Qd2 {[%emt 0:01:44]} Qd7 {[%emt 0:19:33]} 44. g3 {[%emt 0:05:54]} c6 {[%emt 0:02:13]} 45. Rxh4 {[%emt 0:06:16]} Rc8 {[%emt 0:01:02]} 46. Qd3 {[%emt 0:09:59]} cxb5 {[%emt 0:01:11]} 47. axb5 {[%emt 0:00:45]} Qc7 {[%emt 0:08:15]} 48. Rh7 {[%emt 0:01:19]} Re8 {[%emt 0:07:04]} 49. h4 {[%emt 0:02:34]} Qc4 {[%emt 0:01:09]} 50. Rxe6 {[%emt 0:06:11]} Rxe6 {[%emt 0:01:06]} 51. Rxf7+ {[%emt 0:00:07]} Kb8 {[%emt 0:00:35]} 52. Qxc4 {[%emt 0:00:45]} dxc4 {[%emt 0:00:04]} 53. h5 {[%emt 0:00:15]} gxh5 {[%emt 0:02:34]} 54. Rxf5 {[%emt 0:00:24]} Rg6 {[%emt 0:03:01]} 55. Kh2 {[%emt 0:00:09]} Kc7 {[%emt 0:02:59]} 56. Kh3 {[%emt 0:00:28]} Rg8 {[%emt 0:00:22]} 57. Rf7+ {[%emt 0:00:24]} Kb8 {[%emt 0:00:11]} 58. Kh4 {[%emt 0:00:12]} c3 {[%emt 0:00:57]} 59. d5 {[%emt 0:01:17]} Rd8 {[%emt 0:02:13]} 60. g6 {[%emt 0:00:10]} 1-0

[Event "95th Caplin Hastings Congress"]
[Site "Hastings"]
[Date "2019.12.29"]
[Round "2.30"]
[White "Spanton, Tim R"]
[Black "Brozel, Sacha"]
[Result "0-1"]
[ECO "A36"]
[WhiteElo "1951"]
[BlackElo "2188"]
[Annotator "NA"]
[PlyCount "60"]
[EventDate "2019.12.28"]
[EventType "swiss"]
[EventCountry "ENG"]
[SourceTitle "playchess.com"]
[Source "ChessBase"]
[SourceQuality "1"]
[TimeControl "40/6600+30:3000+30"]

1. c4 {[%emt 0:09:33]} c5 {[%emt 0:10:48]} 2. Nc3 {[%emt 0:00:07]} Nc6 {[%emt 0:00:09]} 3. g3 {[%emt 0:00:05]} g6 {[%emt 0:00:16]} 4. Bg2 {[%emt 0:00:06]} Bg7 {[%emt 0:00:05]} 5. d3 {[%emt 0:00:12]} d6 {[%emt 0:02:17]} 6. e4 {[%emt 0:00:18]} e6 {[%emt 0:00:46]} 7. Nge2 {[%emt 0:00:13]} Nge7 {[%emt 0:00:12]} 8. O-O {[%emt 0:00:52]} O-O {[%emt 0:00:50]} 9. Rb1 {[%emt 0:01:58]} b6 {[%emt 0:09:08]} 10. a3 {[%emt 0:02:12]} Bb7 {[%emt 0:00:28]} 11. b4 {[%emt 0:00:26]} Qd7 {[%emt 0:00:39]} 12. b5 {[%emt 0:01:40]} Nd4 {[%emt 0:02:52]} 13. Nxd4 {[%emt 0:00:41]} cxd4 {[%emt 0:12:23]} 14. Ne2 {[%emt 0:00:10]} f5 {[%emt 0:00:08]} 15. exf5 {[%emt 0:04:09]} Bxg2 {[%emt 0:04:58]} 16. Kxg2 {[%emt 0:00:07]} Nxf5 {[%emt 0:02:53]} 17. Nf4 {[%emt 0:02:42]} Ne7 {[%emt 0:07:00]} 18. Qg4 {[%emt 0:02:04]} Rf5 {[%emt 0:00:18]} 19. Re1 {[%emt 0:01:22]} e5 {[%emt 0:00:33]} 20. Qe2 {[%emt 0:03:18]} Raf8 {[%emt 0:06:39]} 21. Rb2 {[%emt 0:02:48]} Qc8 {[%emt 0:11:01]} 22. Qe4 {[%emt 0:03:33]} exf4 {[%emt 0:08:15]} 23. Qxe7 {[%emt 0:00:08]} f3+ {[%emt 0:01:42]} 24. Kh1 {[%emt 0:00:41]} Re5 {[%emt 0:03:41]} 25. Rxe5 {[%emt 0:00:42]} dxe5 {[%emt 0:00:09]} 26. Qh4 {[%emt 0:02:09]} e4 {[%emt 0:01:05]} 27. Bh6 {[%emt 0:04:42]} Bxh6 {[%emt 0:03:46]} 28. Qxh6 {[%emt 0:00:07]} e3 {[%emt 0:00:43]} 29. Kg1 {[%emt 0:02:34]} e2 {[%emt 0:03:11]} 30. Rb1 {[%emt 0:00:19]} Qf5 {[%emt 0:00:25]} 0-1

[Event "95th Caplin Hastings Congress"]
[Site "Hastings"]
[Date "2019.12.29"]
[Round "2.31"]
[White "Bin-Suhayl, Ieysaa"]
[Black "Ortiz Sanchez, Luis"]
[Result "1-0"]
[ECO "A88"]
[WhiteElo "2187"]
[BlackElo "1947"]
[Annotator "NA"]
[PlyCount "57"]
[EventDate "2019.12.28"]
[EventType "swiss"]
[EventCountry "ENG"]
[SourceTitle "playchess.com"]
[Source "ChessBase"]
[SourceQuality "1"]
[TimeControl "40/6600+30:3000+30"]

1. d4 {[%emt 0:09:40]} f5 {[%emt 0:10:31]} 2. g3 {[%emt 0:01:13]} Nf6 {[%emt 0:00:51]} 3. Bg2 {[%emt 0:00:04]} g6 {[%emt 0:00:35]} 4. c4 {[%emt 0:01:24]} Bg7 {[%emt 0:01:28]} 5. Nf3 {[%emt 0:00:06]} O-O {[%emt 0:00:50]} 6. O-O {[%emt 0:01:09]} d6 {[%emt 0:00:17]} 7. Qc2 {[%emt 0:00:57]} c6 {[%emt 0:00:29]} 8. Nc3 {[%emt 0:00:23]} Na6 {[%emt 0:00:19]} 9. a3 {[%emt 0:04:26]} Qe8 {[%emt 0:01:20]} 10. Re1 {[%emt 0:11:15]} e5 {[%emt 0:03:11]} 11. dxe5 {[%emt 0:00:40]} dxe5 {[%emt 0:00:09]} 12. e4 {[%emt 0:00:03]} f4 {[%emt 0:00:31]} 13. gxf4 {[%emt 0:09:48]} Nh5 {[%emt 0:01:31]} 14. Nxe5 {[%emt 0:02:41]} Nxf4 {[%emt 0:04:24]} 15. Bxf4 {[%emt 0:00:12]} Rxf4 {[%emt 0:01:01]} 16. Nd3 {[%emt 0:00:38]} Rh4 {[%emt 0:01:58]} 17. Ne2 {[%emt 0:24:54]} Nc7 {[%emt 0:14:01]} 18. f4 {[%emt 0:12:03]} Bh3 {[%emt 0:06:58]} 19. Bxh3 {[%emt 0:07:55]} Rxh3 {[%emt 0:00:09]} 20. Ng3 {[%emt 0:00:28]} Ne6 {[%emt 0:23:37]} 21. e5 {[%emt 0:00:53]} Rd8 {[%emt 0:02:36]} 22. Rad1 {[%emt 0:02:22]} Rh4 {[%emt 0:02:46]} 23. Rf1 {[%emt 0:00:34]} Rd4 {[%emt 0:03:10]} 24. f5 {[%emt 0:02:42]} gxf5 {[%emt 0:04:51]} 25. Nxf5 {[%emt 0:03:34]} Rxc4 {[%emt 0:12:20]} 26. Qf2 {[%emt 0:00:07]} Rhg4+ {[%emt 0:05:32]} 27. Kh1 {[%emt 0:00:25]} Bf8 {[%emt 0:00:32]} 28. Ne3 {[%emt 0:02:19]} Bc5 {[%emt 0:12:59]} 29. Nxg4 {[%emt 0:01:19]} 1-0